Cogmind - Beta 9.1 @@@ ROGUE MODE // 2019.11.05 @ 18:20:08 Player: Storyteller Result: Destroyed by G-34 Mercenary with Small Laser Performance ------------- Evolutions (1) 500 Regions Visited (2) 400 Robots Destroyed (7) 35 Value Destroyed (135) 135 Prototype IDs (2) 40 Alien Tech Used (0) 0 Bonus (0) 0 TOTAL SCORE: 1110 Bonus ------- None Cogmind --------- Core Integrity 0/400 Matter 249/300 Energy 98/100 System Corruption 1% Temperature Cool (7) Location -9/Materials Parts ------- Power (1) Propulsion (3) Light Treads Utility (2) Small Storage Unit Utility Shielding Weapon (3) Inventory (6) Peak State ------------ Power Ion Engine Propulsion Aluminum Leg Aluminum Leg Utility Small Storage Unit Utility Shielding Weapon EM Pulse Gun EM Pulse Gun Inventory Ion Engine Light Treads Light Treads Assault Rifle [Rating: 7] Favorites ----------- Power Ion Engine Engine Ion Engine Propulsion Aluminum Leg Treads Light Treads Leg Aluminum Leg Utility Small Storage Unit Storage Small Storage Unit Protection Utility Shielding Weapon EM Pulse Gun Energy Gun EM Pulse Gun Ballistic Gun Assault Rifle Build | -11 -10 -9 ------- Run | Scr Mat Mat Slots Evolved 2 | . . 2 Power . | . . . Propulsion 1 | . . 1 Utility . | . . . Weapon 1 | . . 1 Parts Attached 16 | 9 1 6 Power 2 | 1 . 1 Engine 2 | 1 . 1 Core . | . . . Reactor . | . . . Propulsion 7 | 5 . 2 Treads 4 | 2 . 2 Leg 3 | 3 . . Wheel . | . . . Hover . | . . . Flight . | . . . Utility 2 | 1 . 1 Device . | . . . Storage 1 | 1 . . Processor . | . . . Hackware . | . . . Protection 1 | . . 1 Artifact . | . . . Weapon 5 | 2 1 2 Energy Gun 3 | 1 1 1 Energy Cannon . | . . . Ballistic Gun 2 | 1 . 1 Ballistic Cannon . | . . . Launcher . | . . . Special Weapon . | . . . Impact Weapon . | . . . Slashing Weapon . | . . . Piercing Weapon . | . . . Special Melee Weapon . | . . . Unidentified Prototypes . | . . . Parts Lost 9 | . . 9 Power 2 | . . 2 Propulsion 3 | . . 3 Utility . | . . . Weapon 4 | . . 4 Highest Loss Streak 6 | . . 6 Average Slot Usage (%) 61 | . 75 55 Engine 9 | . 14 7 Treads 1 | . . 2 Leg 16 | . 28 12 Storage 11 | . 14 11 Protection 6 | . . 8 Energy Gun 14 | . 18 12 Naked Turns . | . . . Heaviest Build 14 | 13 13 14 Greatest Support 40 | 40 20 20 Greatest Overweight (x) 3 | 1 . 3 Average Overweight (x) . | . . . Largest Inventory Capacity 6 | 6 6 6 Average Capacity 5 | 5 6 6 Most Carried 5 | 4 5 4 Average Carried 2 | 1 4 2 Final Capacity 6 | 6 6 6 Final Carried 4 | 4 4 . Class Distribution -------------------- 100% | Mutant Dominant Class ---------------- Mutant | -10/Materials Mutant | -9/Materials Resources | -11 -10 -9 ----------- Run | Scr Mat Mat Matter Collected 288 | 223 29 36 Remotely . | . . . Salvage Created 203 | . 29 174 Parts 16 | . 1 15 Haulers Intercepted . | . . . Recyclers Shooed . | . . . Parts Field Recycled . | . . . Retrieved Matter . | . . . Parts Self-Destructed . | . . . Prevented . | . . . Kills | -11 -10 -9 ------- Run | Scr Mat Mat Combat Hostiles Destroyed 6 | . . 6 Guns 6 | . . 6 Classes Destroyed 4 | . 1 3 Watcher 1 | . 1 . Swarmer 4 | . . 4 Grunt 1 | . . 1 Sentry 1 | . . 1 Best Kill Streak 4 | . 1 4 Combat Bots Only 4 | . . 4 Max Kills in Single Turn 1 | . 1 1 Gunslinging . | . . . Exploded . | . . . Melee . | . . . Uniques/NPCs Destroyed . | . . . Combat | -11 -10 -9 -------- Run | Scr Mat Mat Damage Taken 1320 | . . 1320 Core 409 | . . 409 Absorbed by Shields . | . . . Core Remaining (%) 100 | 100 100 . Volleys Fired 32 | . 5 27 Largest 2 | . 2 2 Hottest 80 | . 80 80 Shots Fired 47 | . 8 39 Gun 47 | . 8 39 Cannon . | . . . Launcher . | . . . Special . | . . . Kinetic 9 | . . 9 Thermal . | . . . Explosive . | . . . Electromagnetic 38 | . 8 30 Robot Hit Streak 8 | . 3 8 Robot Miss Streak 2 | . 2 2 Penetration Max . | . . . Secondary Targets . | . . . Shots Hit Robots 27 | . 4 23 Core Hits 8 | . 1 7 Critical Hits . | . . . Critical Kills . | . . . Critical Parts Destroyed . | . . . Melee Attacks . | . . . Impact . | . . . Slashing . | . . . Piercing . | . . . Sneak Attacks . | . . . Combat Hostiles . | . . . Follow-up Attacks . | . . . Damage Inflicted 370 | . 66 304 Guns 361 | . 66 295 Cannons . | . . . Explosions . | . . . Melee . | . . . Ramming 9 | . . 9 Kinetic 94 | . . 94 Thermal . | . . . Explosive . | . . . Electromagnetic 267 | . 66 201 Impact . | . . . Slashing . | . . . Piercing . | . . . Highest Corruption 1 | . . 1 Average Corruption 1 | . . 1 Corruption Purged . | . . . Effects 2 | . . 2 Energy Discharges 1 | . . 1 Targeting Errors 1 | . . 1 Overload Shots . | . . . Overflow Damage . | . . . Projectiles . | . . . Explosions . | . . . Melee . | . . . Knockbacks . | . . . Impact . | . . . Kinetic . | . . . Secondary . | . . . Self-Inflicted Damage 4 | . . 4 Shots . | . . . Rammed 1 | . . 1 Targets Rammed 1 | . . 1 Kicked . | . . . Crushed . | . . . Highest Temperature 57 | . 54 57 Average Temperature 24 | . 29 23 Received Heat Transfer 432 | . . 432 Siege Activations . | . . . Robots Corrupted . | . . . Combat Hostiles . | . . . Parts Fried 3 | . 3 . Impact Corruptions . | . . . Robots Melted . | . . . Combat Hostiles . | . . . Parts Melted . | . . . Heat Transferred . | . . . Parts Sabotaged . | . . . Parts Stolen . | . . . Parts Stripped . | . . . Power Chain Reactions . | . . . Missiles Intercepted . | . . . Alert | -11 -10 -9 ------- Run | Scr Mat Mat Peak Influence 158 | . 35 158 Average Influence 42 | . 16 66 Maximum Alert Level . | . . . Low Security (%) 100 | . . . Level 1 . | . . . Level 2 . | . . . Level 3 . | . . . Level 4 . | . . . Level 5 . | . . . High Security . | . . . Max Security . | . . . Squads Dispatched 2 | . . 2 Investigation 1 | . . 1 Extermination . | . . . Reinforcement 1 | . . 1 Assault . | . . . Garrison . | . . . Intercept . | . . . Construction Impeded . | . . . Haulers Reinforced . | . . . Stealth | -11 -10 -9 --------- Run | Scr Mat Mat Distress Signals 1 | . . 1 Communications Jammed . | . . . Distress Signals . | . . . Times Spotted 23 | . 2 21 Peak Tracking Total 6 | . 2 6 Tactical Retreats 3 | . . 3 Traps | -11 -10 -9 ------- Run | Scr Mat Mat Traps Triggered 2 | . . 2 Indirectly . | . . . Trap Hack Attempts . | . . . Triggered . | . . . Disarmed 3 | . 3 . Reprogrammed . | . . . Reused . | . . . Traps Extracted . | . . . Installed . | . . . Triggered . | . . . Machines | -11 -10 -9 ---------- Run | Scr Mat Mat Machines Disabled . | . . . Max in Single Turn . | . . . Machines Sabotaged . | . . . Garrisons Compromised . | . . . Overloaded Fab Kills . | . . . Fab Network Shutdowns . | . . . Hacking | -11 -10 -9 --------- Run | Scr Mat Mat Machines Accessed 4 | . 1 3 Terminals 4 | . 1 3 Fabricators . | . . . Repair Stations . | . . . Recycling Units . | . . . Scanalyzers . | . . . Garrison Access . | . . . Total Hacks 13 | . 5 8 Successful 10 | . 4 6 Failed 3 | . 1 2 Catastrophic . | . . . Database Lockouts . | . . . Manual . | . . . Terminals 13 | . 5 8 Fabricators . | . . . Repair Stations . | . . . Recycling Units . | . . . Scanalyzers . | . . . Garrison Access . | . . . Terminal Hacks 10 | . 4 6 Record 4 | . . 4 Robot Analysis 1 | . 1 . Prototype ID Bank 1 | . 1 . Emergency Access Points 1 | . . 1 Locate Traps 1 | . 1 . Disarm Traps 1 | . 1 . Zone Layout 1 | . . 1 Fabricator Hacks . | . . . Repair Station Hacks . | . . . Recycling Unit Hacks . | . . . Scanalyzer . | . . . Garrison Access Hacks . | . . . Unauthorized Hacks . | . . . Terminals . | . . . Fabricators . | . . . Repair Stations . | . . . Recycling Units . | . . . Scanalyzers . | . . . Garrison Access . | . . . Data Cores Recovered . | . . . Used . | . . . Hacking Detections 4 | . 1 3 Full Trace Events 1 | . . 1 Feedback Events . | . . . Feedback Blocked . | . . . Robot Schematics Acquired . | . . . Robots Built . | . . . Matter . | . . . Time . | . . . Total Robot Build Rating . | . . . Part Schematics Acquired . | . . . Parts Built . | . . . Matter . | . . . Time . | . . . Total Part Build Rating . | . . . Parts Repaired . | . . . Time . | . . . Parts Recycled . | . . . Recycled Matter . | . . . Retrieved Matter . | . . . Retrieved Components . | . . . Parts Scanalyzed . | . . . Part Schematics Acquired . | . . . Parts Damaged . | . . . Bothacking | -11 -10 -9 ------------ Run | Scr Mat Mat Used RIF Installer . | . . . Robots Hacked . | . . . Non-combat . | . . . Combat . | . . . Robot Hacks Applied . | . . . Relay Couplers Released . | . . . Robots Rewired . | . . . Allies Hacked . | . . . Hacks Repelled . | . . . Allies | -11 -10 -9 -------- Run | Scr Mat Mat Total Allies . | . . . Largest Group . | . . . Highest-Rated Group . | . . . Highest-Rated Ally . | . . . Total Orders . | . . . Ally Attacks . | . . . Total Damage . | . . . Kills . | . . . Allies Corrupted . | . . . Allies Melted . | . . . Intel | -11 -10 -9 ------- Run | Scr Mat Mat Robot Analysis Total 1 | . 1 . Derelict Logs Recovered . | . . . Drone Launches . | . . . Drone Recoveries . | . . . Exploration | -11 -10 -9 ------------- Run | Scr Mat Mat Turns Passed 725 | 152 152 421 Spaces Moved 506 | 112 115 279 Core 115 | 10 . 105 Treads 32 | 10 . 22 Legs 359 | 92 115 152 Wheels . | . . . Hover . | . . . Flight . | . . . Fastest Speed 50 | 50 120 100 Average Speed 123 | 122 120 124 Slowest Speed 200 | 160 120 200 Overloaded Moves . | . . . Propulsion Burnouts . | . . . Robots Hopped . | . . . Cave-ins Triggered . | . . . Exploration Rate (%) 21 | 7 25 31 Regions Visited 2 Branch Regions . Pre-discovered Areas . | . . . Known Exits Taken . | . . . Unknown Exits Taken 2 | 1 1 . Scrap Searched . | . . . Spaces Dug . | . . . Terrain Destroyed . | . . . Melee . | . . . Projectile . | . . . AOE . | . . . Actions | -11 -10 -9 --------- Run | Scr Mat Mat Total 559 | 125 121 313 Wait . | . . . Move 504 | 111 114 279 Hop . | . . . Pick Up 2 | 1 1 . Fast Attach 10 | 8 . 2 Attach 6 | 1 1 4 Detach 4 | 4 . . Swap . | . . . Drop . | . . . Fire 32 | . 5 27 Melee . | . . . Ram . | . . . Kick 1 | . . 1 Crush . | . . . Escape Stasis . | . . . Rewire . | . . . Trap . | . . . Miscellaneous . | . . . Route ------- -11/Scrapyard -10/Materials -9/Materials History --------- Turn | Location | Event 6 | -11/Scrapyard | Discovered new exit (range 16) 153 | -11/Scrapyard | Entered Materials 287 | -10/Materials | Discovered new exit (range 15) 305 | -10/Materials | Entered another Materials area 305 | -9/Materials | Evolved 2 slots: Propulsion x1, Weapon x1 310 | -9/Materials | Build established: Mutant 590 | -9/Materials | Lost 6 parts (1p2n3w) 668 | -9/Materials | Core integrity fell below 50% 685 | -9/Materials | Core integrity fell below 20% 726 | -9/Materials | Destroyed by G-34 Mercenary with Small Laser Last Messages --------------- 00547_ R-06 Scavenger collects Aluminum Leg. 00549_ Aluminum Leg destroyed. 00551_ R-06 Scavenger collects Beam Rifle. 00554_ Assault Rifle destroyed. 00558_ K-01 Serf collects debris. 00559_ Aluminum Leg destroyed. 00561_ K-01 Serf collects debris. 00594_ Lgt. Treads destroyed. 00600_ Ion Engine destroyed. 00628_ Acquired Particle Gun. 00640_ Particle Gun destroyed. 00643_ K-01 Serf collects debris. 00706_ O-16 Technician: "IFF HANDSHAKE FAILED. SECURING TERMINAL." 00709_ T-07 Excavator is excavating. 00712_ ALERT: Hostiles spotted, dispatching reinforcements to Terminal M005. 00713_ T-07 Excavator is excavating. 00715_ System corrupted: Energy discharge (-21). 00718_ T-07 Excavator is excavating. 00725_ G-34 Mercenary destroyed. Map ----- +----------------------------------------------------+ | ??????????????????????????????????????? | | ??????????????????????????????????????? | | ??????????????????????????????????????? | | ??????????????????????????????????????? | | ??????????????????????????????????????? | | ??????????????????????????????????????? | | ??????????????????????????????????????? | | ??????????????????????????????????????? | | ??????????????????????????????????????? | | ??????????????????????????????????????? | | ??????????????????????????????????????? | | ???????? ?????????????????????????????? | | ????? ????????????????????????????? | | ?????? ????????????????????????????? | | ?????? ????????????????????????????? | | ??????# ??????###???????????????????? | | ??????# ?????? ???????????????????? | | ??????# ??????"S ??????????????????? | | ??????# ?????#""" ??????????????????? | | ????### #????? "" ?????????????????? | | ??? !## #??????? ?????????????????? | | ? ## ##??????? ??###+###???????? | | # ##########t### #???????? | | [ # u u #???????? | | + g g = t #???????? | | "" # Y [%gl @ #???????? | | "" # ########## ### #???????? | | "" ?## ########?# ### ##???????? | | % ???# # #?# ###?? #????????? | | /##???# # """ =#?##????? #????????? | | #???# # """ #???????? +????????? | | ##### # """ #????????? #????????? | | ""+% / """ #????????? g#????????? | | " ##### # """ #????????? #????????? | | " #???# # #????????? g ????????? | | #???# # #?????????? ????????? | | ###???# ########?????????? ???????? | | #?????# ###############???###???????? | | #?????# #?????????????? | | #?????# #?????????????? | | #?????# ########??????? | | ####### #####/##### # #??????? | | # ## # # #??????? | | """ # ## T """ # # #??????? | | """ # ## """ # + #??????? | | """ # ## """ # # #??????? | | + ## ! / # #??????? | | # ## """ # ####/###??????? | | !! # ## """ !# #??# #????????? | | !! # ## """ # #??# #????????? | +----------------------------------------------------+ Best States ------------- Heat Dissipation 28 Energy Generation 10 Energy Capacity 250 Matter Stores 281 Matter Capacity 300 Sight Range 16 Terrain Scan Density 10 Utility Shielding 33 Evasion (%) 40 Recoil Reduction 2 Item Schematics ----------------- None Robot Schematics ------------------ None Fabricated ------------ Nothing Alien Tech Used ----------------- None Achievements -------------- None Challenges ------------ None Game ------ Seed DirtyDroneBoosters Manual? 0 Play Time 00:16:14 Cumulative 14.2 hours Start 2019.11.05 @ 18:07:20 End 2019.11.05 @ 18:20:08 Sessions 1 Manual Loads 0 Difficulty Rogue Special Mode None Game No. 20 Rogue 20 Adventurer 0 Explorer 0 Win Type - Total 0 Types 0/0/0/0/0/0/0 Lore% 3 Gallery% 13 Achievement% 10 Wizard Run 0 Options --------- ASCII 1 Keyboard 1 Movement Vi Keybinds 0 Fullscreen 1 Font 18/Terminus Map View 76x50 Tactical HUD 1 Map Filters NONE Filters NONE Steam 1 RUN: 95993aa3-da6c-4ca4-a728-5e2d3eff6c5d